lending/lending_fUSD_20241229
["ID","MTS","AMOUNT","RATE_DAILY","PERIOD"]
[347093173,1735493448983,-500.0,0.00012906,2]
[347093174,1735493448992,-800.0,0.00013068,2]
[347093175,1735493449002,-500.0,0.00013068,2]
[347093176,1735493449012,-500.0,0.00013176,2]
[347093177,1735493449022,-500.0,0.00013176,2]
[347093178,1735493449031,-500.0,0.00013176,2]
[347093179,1735493449041,-3192.16,0.00013176,2]
[347093180,1735493449051,-649.19,0.00013176,2]
[347093181,1735493449061,-500.0,0.00013176,2]
[347093182,1735493449071,-263.91,0.00013176,2]
[347093183,1735493449080,-500.0,0.00013176,2]
[347093184,1735493449090,-1002.37,0.00013176,2]
[347093185,1735493449099,-500.0,0.00013176,2]
[347093186,1735493449109,-500.0,0.00013176,2]
[347093187,1735493449119,-500.0,0.00013176,2]
[347093188,1735493449128,-500.0,0.00013176,2]
[347093189,1735493449137,-500.0,0.00013176,2]
[347093190,1735493449147,-1915.21,0.00013176,2]
[347093191,1735493449156,-500.0,0.00013176,2]
[347093192,1735493449165,-500.0,0.00013176,2]
[347093193,1735493449175,-500.0,0.00013176,2]
[347093194,1735493449185,-500.0,0.00013176,2]
[347093195,1735493449194,-706.9,0.00013176,2]
[347093196,1735493449204,-854.58,0.00013176,2]
[347093197,1735493449214,-500.0,0.00013176,2]
[347093198,1735493449224,-500.0,0.00013176,2]
[347093199,1735493449233,-500.0,0.00013177,2]
[347093200,1735493449242,-500.0,0.00013177,2]
[347093201,1735493449251,-500.0,0.00013177,2]
[347093202,1735493449261,-429.94,0.00013177,2]
[347093203,1735493449271,-500.0,0.00013177,2]
[347093204,1735493449280,-500.0,0.00013177,2]
[347093205,1735493449290,-500.0,0.00013177,2]
[347093206,1735493449299,-778.59,0.00013177,2]
[347093207,1735493449309,-604.58,0.00013177,2]
[347093208,1735493449318,-500.0,0.00013177,2]
[347093209,1735493449328,-500.0,0.00013177,2]
[347093210,1735493449337,-641.68,0.00013177,2]
[347093211,1735493449346,-500.0,0.00013177,2]
[347093212,1735493449356,-500.0,0.00013177,2]
[347093213,1735493449365,-469.48,0.00013177,2]
[347093214,1735493449375,-500.0,0.00013177,2]
[347093215,1735493449384,-500.0,0.00013177,2]
[347093216,1735493449393,-500.0,0.00013177,2]
[347093217,1735493449402,-500.0,0.00013177,2]
[347093218,1735493449411,-1356.36,0.00013177,2]
[347093219,1735493449421,-153.095503,0.00013177,2]
[347093220,1735493449430,-500.0,0.00013177,2]
[347093221,1735493449440,-500.0,0.00013177,2]
[347093222,1735493449450,-189.78,0.00013177,2]
[347093223,1735493449459,-500.0,0.00013177,2]
[347093224,1735493449469,-254.76,0.00013177,2]
[347093225,1735493449479,-500.0,0.00013177,2]
[347093226,1735493449488,-1707.38,0.00013177,2]
[347093227,1735493449498,-288.55,0.00013177,2]
[347093228,1735493449508,-500.0,0.00013177,2]
[347093229,1735493449517,-500.0,0.00013177,2]
[347093230,1735493449527,-375.88,0.00013177,2]
[347093231,1735493449536,-500.0,0.00013177,2]
[347093232,1735493449545,-500.0,0.00013177,2]
[347093233,1735493449555,-500.0,0.00013177,2]
[347093234,1735493449564,-500.0,0.00013177,2]
[347093235,1735493449574,-500.0,0.00013177,2]
[347093236,1735493449583,-500.0,0.00013177,2]
[347093237,1735493449593,-500.0,0.00013177,2]
[347093238,1735493449602,-500.0,0.00013177,2]
[347093239,1735493449611,-471.28725447,0.00013178,2]
[347093240,1735493449620,-490.03842147,0.00013178,2]
[347093241,1735493449630,-721.2,0.00013178,2]
[347093242,1735493449640,-500.0,0.00013178,2]
[347093243,1735493449649,-500.0,0.00013178,2]
[347093244,1735493449658,-500.0,0.00013178,2]
[347093245,1735493449667,-500.0,0.00013178,2]
[347093246,1735493449677,-500.0,0.00013179,2]
[347093247,1735493449686,-500.0,0.00013179,2]
[347093248,1735493449695,-3098.49,0.00013179,2]
[347093249,1735493449704,-500.0,0.00013179,2]
[347093250,1735493449713,-500.0,0.00013179,2]
[347093251,1735493449723,-500.0,0.00013179,2]
[347093252,1735493449732,-1148.81,0.00013179,2]
[347093253,1735493449743,-500.0,0.00013179,2]
[347093254,1735493449752,-500.0,0.00013179,2]
[347093255,1735493449762,-354.49,0.00013179,2]
[347093256,1735493449772,-356.54,0.00013179,2]
[347093257,1735493449782,-500.0,0.00013179,2]
[347093258,1735493449792,-192.5,0.00013179,2]
[347093259,1735493449802,-410.22,0.00013179,2]
[347093260,1735493449812,-500.0,0.00013179,2]
[347093261,1735493449822,-500.0,0.00013179,2]
[347093262,1735493449831,-273.13,0.00013179,2]
[347093263,1735493449841,-545.55,0.00013179,2]
[347093264,1735493449851,-710.53,0.00013179,2]
[347093265,1735493449860,-578.06961721,0.00013179,2]
[347093266,1735493449870,-500.0,0.00013179,2]
[347093267,1735493449879,-500.0,0.00013179,2]
[347093268,1735493449889,-789.75,0.00013179,2]
[347093269,1735493449899,-500.0,0.00013179,2]
[347093270,1735493449909,-531.59,0.00013179,2]
[347093271,1735493449920,-500.0,0.00013179,2]
[347093272,1735493449930,-619.53,0.00013179,2]
[347093273,1735493449940,-500.0,0.0001318,2]
[347093274,1735493449952,-515.98,0.0001318,2]
[347093275,1735493449964,-500.0,0.0001318,2]
[347093276,1735493449973,-188.62,0.0001318,2]
[347093277,1735493449984,-547.27987112,0.0001318,2]
[347093278,1735493449995,-500.0,0.0001318,2]
[347093279,1735493450006,-500.0,0.0001318,2]
[347093280,1735493450016,-500.0,0.0001318,2]
[347093281,1735493450025,-500.0,0.0001318,2]
[347093282,1735493450036,-2758.61,0.0001318,2]
[347093283,1735493450046,-500.0,0.0001318,2]
[347093284,1735493450055,-500.0,0.0001318,2]
[347093285,1735493450065,-500.0,0.0001345,2]
[347093286,1735493450074,-500.0,0.0001345,2]
[347093287,1735493450083,-500.0,0.0001345,2]
[347093288,1735493450093,-3192.16,0.0001345,2]
[347093289,1735493450103,-500.0,0.0001345,2]
[347093290,1735493450112,-500.0,0.0001345,2]
[347093291,1735493450122,-1002.37,0.0001345,2]
[347093292,1735493450131,-500.0,0.0001345,2]
[347093293,1735493450140,-500.0,0.0001345,2]
[347093294,1735493450150,-500.0,0.0001345,2]
[347093295,1735493450159,-500.0,0.0001345,2]
[347093296,1735493450169,-500.0,0.0001345,2]
[347093297,1735493450179,-1915.21,0.0001345,2]
[347093298,1735493450188,-500.0,0.0001345,2]
[347093299,1735493450197,-500.0,0.0001345,2]
[347093300,1735493450207,-500.0,0.0001345,2]
[347093301,1735493450216,-500.0,0.0001345,2]
[347093302,1735493450226,-706.9,0.0001345,2]
[347093303,1735493450235,-854.58,0.0001345,2]
[347093304,1735493450246,-500.0,0.0001345,2]
[347093305,1735493450255,-500.0,0.0001345,2]
[347093306,1735493450264,-334.78,0.00013451,2]
[347093307,1735493450274,-340.25,0.00013451,2]
[347093308,1735493450283,-290.04877807,0.00013451,2]
[347093309,1735493450292,-500.0,0.00013451,2]
[347093310,1735493450302,-500.0,0.00013451,2]
[347093311,1735493450311,-549.41,0.00013451,2]
[347093312,1735493450321,-778.59,0.00013451,2]
[347093313,1735493450330,-500.0,0.00013451,2]
[347093314,1735493450340,-202.95,0.00013451,2]
[347093315,1735493450349,-641.68,0.00013451,2]
[347093316,1735493450359,-500.0,0.00013451,2]
[347093317,1735493450368,-500.0,0.00013451,2]
[347093318,1735493450377,-500.0,0.00013451,2]
[347093319,1735493450387,-500.0,0.00013451,2]
[347093320,1735493450397,-298.7,0.00013451,2]
[347093321,1735493450407,-500.0,0.00013451,2]
[347093322,1735493450417,-1356.36,0.00013451,2]
[347093323,1735493450426,-153.095503,0.00013451,2]
[347093324,1735493450436,-500.0,0.00013451,2]
[347093325,1735493450445,-151.299562,0.00013451,2]
[347093326,1735493450455,-500.0,0.00013451,2]
[347093327,1735493450465,-500.0,0.00013451,2]
[347093328,1735493450474,-248.69,0.00013451,2]
[347093329,1735493450483,-1707.38,0.00013451,2]
[347093330,1735493450493,-500.0,0.00013451,2]
[347093331,1735493450502,-500.0,0.00013451,2]
[347093332,1735493450512,-500.0,0.00013451,2]
[347093333,1735493450521,-119.13721619,0.00013451,2]
[347093334,1735493450741,-392.59278381,0.00013451,2]
[347093335,1735493450754,-500.0,0.00013451,2]
[347093336,1735493450765,-212.7,0.00013451,2]
[347093337,1735493450775,-500.0,0.00013451,2]
[347093338,1735493450786,-500.0,0.00013451,2]
[347093339,1735493450796,-500.0,0.00013451,2]
[347093340,1735493450806,-1630.45,0.00013452,2]
[347093341,1735493450817,-721.2,0.00013452,2]
[347093342,1735493450828,-500.0,0.00013452,2]
[347093343,1735493450838,-500.0,0.00013452,2]
[347093344,1735493450848,-500.0,0.00013453,2]
[347093345,1735493450857,-500.0,0.00013453,2]
[347093346,1735493450867,-3098.49,0.00013453,2]
[347093347,1735493450877,-500.0,0.00013453,2]
[347093348,1735493450887,-500.0,0.00013453,2]
[347093349,1735493450896,-500.0,0.00013453,2]
[347093350,1735493450906,-1148.81,0.00013453,2]
[347093351,1735493450918,-500.0,0.00013453,2]
[347093352,1735493450927,-500.0,0.00013453,2]
[347093353,1735493450937,-500.0,0.00013453,2]
[347093354,1735493450947,-640.48,0.00013453,2]
[347093355,1735493450960,-500.0,0.00013453,2]
[347093356,1735493450971,-710.53,0.00013453,2]
[347093357,1735493450981,-500.0,0.00013453,2]
[347093358,1735493450991,-500.0,0.00013453,2]
[347093359,1735493451001,-500.0,0.00013453,2]
[347093360,1735493451011,-789.75,0.00013453,2]
[347093361,1735493451021,-500.0,0.00013453,2]
[347093362,1735493451031,-531.59,0.00013453,2]
[347093363,1735493451042,-500.0,0.00013453,2]
[347093364,1735493451052,-619.53,0.00013453,2]
[347093365,1735493451062,-500.0,0.00013454,2]
[347093366,1735493451079,-515.98,0.00013454,2]
[347093367,1735493451093,-500.0,0.00013454,2]
[347093368,1735493451104,-500.0,0.00013454,2]
[347093369,1735493451114,-500.0,0.00013454,2]
[347093370,1735493451125,-500.0,0.00013454,2]
[347093371,1735493451135,-500.0,0.00013454,2]
[347093372,1735493451146,-2758.61,0.00013454,2]
[347093373,1735493451156,-500.0,0.00013454,2]
[347093374,1735493451167,-442.41,0.0001351,2]
[347093375,1735493451178,-300.0,0.00013678,2]
[347093376,1735493451188,-500.0,0.00013699,2]
[347093377,1735493451199,-4000.0,0.00013699,2]
[347093378,1735493451212,-200.0,0.00013699,2]
[347093379,1735493451223,-480.93,0.00013699,2]
[347093380,1735493451234,-500.0,0.00013724,2]
[347093381,1735493451244,-500.0,0.00013724,2]
[347093382,1735493451254,-500.0,0.00013724,2]
[347093383,1735493451265,-3192.16,0.00013724,2]
[347093384,1735493451275,-500.0,0.00013724,2]
[347093385,1735493451286,-500.0,0.00013724,2]
[347093386,1735493451299,-182.55745897,0.00013724,2]
[347093387,1735493451321,-500.0,0.00013451,2]
[347093388,1735493451332,-819.81254103,0.00013724,2]
[347093389,1735493451342,-500.0,0.00013724,2]
[347093390,1735493451353,-500.0,0.00013724,2]
[347093391,1735493451363,-500.0,0.00013724,2]
[347093392,1735493451374,-500.0,0.00013724,2]
[347093393,1735493451384,-500.0,0.00013724,2]
[347093394,1735493451395,-1915.21,0.00013724,2]
[347093395,1735493451405,-500.0,0.00013724,2]
[347093396,1735493451415,-500.0,0.00013724,2]
[347093397,1735493451426,-500.0,0.00013724,2]
[347093398,1735493451436,-500.0,0.00013724,2]
[347093399,1735493451446,-706.9,0.00013724,2]
[347093400,1735493451456,-854.58,0.00013724,2]
[347093401,1735493451467,-241.59,0.00013724,2]
[347093402,1735493451477,-500.0,0.00013724,2]
[347093403,1735493451487,-500.0,0.00013725,2]
[347093404,1735493451498,-500.0,0.00013725,2]
[347093405,1735493451508,-778.59,0.00013725,2]
[347093406,1735493451519,-500.0,0.00013725,2]
[347093407,1735493451529,-641.68,0.00013725,2]
[347093408,1735493451539,-275.34,0.00013725,2]
[347093409,1735493451550,-500.0,0.00013725,2]
[347093410,1735493451560,-500.0,0.00013725,2]
[347093411,1735493451571,-500.0,0.00013725,2]
[347093412,1735493451582,-500.0,0.00013725,2]
[347093413,1735493451592,-1356.36,0.00013725,2]
[347093414,1735493451603,-153.095503,0.00013725,2]
[347093415,1735493451613,-500.0,0.00013725,2]
[347093416,1735493451623,-151.299562,0.00013725,2]
[347093417,1735493451634,-500.0,0.00013725,2]
[347093418,1735493451644,-500.0,0.00013725,2]
[347093419,1735493451654,-1707.38,0.00013725,2]
[347093420,1735493451664,-500.0,0.00013725,2]
[347093421,1735493451675,-500.0,0.00013725,2]
[347093422,1735493451685,-500.0,0.00013725,2]
[347093423,1735493451696,-500.0,0.00013725,2]
[347093424,1735493451708,-500.0,0.00013725,2]
[347093425,1735493451909,-500.0,0.00013725,2]
[347093426,1735493451920,-500.0,0.00013725,2]
[347093427,1735493451931,-1630.45,0.00013726,2]
[347093428,1735493451941,-721.2,0.00013726,2]
[347093429,1735493451952,-500.0,0.00013726,2]
[347093430,1735493451964,-500.0,0.00013726,2]
[347093431,1735493451973,-500.0,0.00013727,2]
[347093432,1735493451983,-500.0,0.00013727,2]
[347093433,1735493451992,-3098.49,0.00013727,2]
[347093434,1735493452003,-500.0,0.00013727,2]
[347093435,1735493452012,-500.0,0.00013727,2]
[347093436,1735493452021,-500.0,0.00013727,2]
[347093437,1735493452032,-1148.81,0.00013727,2]
[347093438,1735493452042,-500.0,0.00013727,2]
[347093439,1735493452051,-500.0,0.00013727,2]
[347093440,1735493452061,-416.8,0.00013727,2]
[347093441,1735493452070,-500.0,0.00013727,2]
[347093442,1735493452079,-710.53,0.00013727,2]
[347093443,1735493452089,-500.0,0.00013727,2]
[347093444,1735493452098,-194.66248832,0.00013727,2]
[347093445,1735493452108,-789.75,0.00013727,2]
[347093446,1735493452117,-500.0,0.00013727,2]
[347093447,1735493452127,-531.59,0.00013727,2]
[347093448,1735493452137,-500.0,0.00013727,2]
[347093449,1735493452146,-619.53,0.00013727,2]
[347093450,1735493452156,-498.16,0.00013727,2]
[347093451,1735493452166,-500.0,0.00013728,2]
[347093452,1735493452175,-515.98,0.00013728,2]
[347093453,1735493452185,-500.0,0.00013728,2]
[347093454,1735493452194,-500.0,0.00013728,2]
[347093455,1735493452203,-500.0,0.00013728,2]
[347093456,1735493452212,-500.0,0.00013728,2]
[347093457,1735493452222,-418.88025803,0.00013728,2]
[347093458,1735493452234,-81.11974197,0.00013728,2]
[347093459,1735493452243,-2758.61,0.00013728,2]
[347093460,1735493452252,-500.0,0.00013728,2]
[347093461,1735493452261,-1000.0,0.00013831,2]
[347093462,1735493452270,-167.25950436,0.000139,2]
[347093463,1735493452279,-1057.0,0.00013935,2]
[347093464,1735493452288,-500.0,0.00013998,2]
[347093465,1735493452298,-500.0,0.00013998,2]
[347093466,1735493452307,-500.0,0.00013998,2]
[347093467,1735493452316,-3192.16,0.00013998,2]
[347093468,1735493452326,-500.0,0.00013998,2]
[347093469,1735493452335,-500.0,0.00013998,2]
[347093470,1735493452344,-1002.37,0.00013998,2]
[347093471,1735493452353,-500.0,0.00013998,2]
[347093472,1735493452366,-500.0,0.00013998,2]
[347093473,1735493452376,-500.0,0.00013998,2]
[347093474,1735493452385,-500.0,0.00013998,2]
[347093475,1735493452395,-500.0,0.00013998,2]
[347093476,1735493452404,-1915.21,0.00013998,2]
[347093477,1735493452414,-500.0,0.00013998,2]
[347093478,1735493452424,-500.0,0.00013998,2]
[347093479,1735493452433,-500.0,0.00013998,2]
[347093480,1735493452443,-500.0,0.00013998,2]
[347093481,1735493452452,-706.9,0.00013998,2]
[347093482,1735493452462,-854.58,0.00013998,2]
[347093483,1735493452471,-500.0,0.00013998,2]
[347093484,1735493452481,-500.0,0.00013999,2]
[347093485,1735493452490,-500.0,0.00013999,2]
[347093486,1735493452501,-778.59,0.00013999,2]
[347093487,1735493452510,-500.0,0.00013999,2]
[347093488,1735493452522,-641.68,0.00013999,2]
[347093489,1735493452531,-500.0,0.00013999,2]
[347093490,1735493452542,-500.0,0.00013999,2]
[347093491,1735493452551,-318.54,0.00013999,2]
[347093492,1735493452560,-500.0,0.00013999,2]
[347093493,1735493452570,-1356.36,0.00013999,2]
[347093494,1735493452580,-153.095503,0.00013999,2]
[347093495,1735493452590,-500.0,0.00013999,2]
[347093496,1735493452600,-500.0,0.00013999,2]
[347093497,1735493452609,-480.06,0.00013999,2]
[347093498,1735493452619,-1707.38,0.00013999,2]
[347093499,1735493452629,-500.0,0.00013999,2]
[347093500,1735493452639,-281.09,0.00013999,2]
[347093501,1735493452649,-500.0,0.00013999,2]
[347093502,1735493452658,-500.0,0.00013999,2]
[347093503,1735493452668,-500.0,0.00013999,2]
[347093504,1735493452679,-500.0,0.00013999,2]
[347093505,1735493452688,-500.0,0.00013999,2]
[347093506,1735493452698,-500.0,0.00014,2]
[347093507,1735493452708,-1630.45,0.00014,2]
[347093508,1735493452718,-721.2,0.00014,2]
[347093509,1735493452728,-500.0,0.00014,2]
[347093510,1735493452737,-500.0,0.00014,2]
[347093511,1735493452748,-500.0,0.00014001,2]
[347093512,1735493452757,-212.91371823,0.00014001,2]
[347093513,1735493452777,-500.0,0.00011531,2]
[347093514,1735493452787,-201.26254607,0.00014001,2]
[347093515,1735493452799,-85.8237357,0.00014001,2]
[347093516,1735493452809,-263.75520183,0.00014001,2]
[347093517,1735493453334,-500.0,0.00011531,2]
[347093518,1735493453346,-290.23784034,0.00011531,2]
[347093519,1735493453360,-209.76215966,0.00011531,2]
[347093520,1735493453370,-500.0,0.00011531,2]
[347093521,1735493453379,-500.0,0.00011533,2]
[347093522,1735493453389,-500.0,0.00011534,2]
[347093523,1735493453398,-500.0,0.00011534,2]
[347093524,1735493453409,-500.0,0.00011805,2]
[347093525,1735493453420,-500.0,0.00011807,2]
[347093526,1735493453429,-500.0,0.00011808,2]
[347093527,1735493453439,-500.0,0.00012079,2]
[347093528,1735493453448,-530.53,0.00012081,2]
[347093529,1735493453457,-500.0,0.00012082,2]
[347093530,1735493453467,-188.78037112,0.00012084,2]
[347093531,1735493453591,-500.0,0.00011531,2]
[347093532,1735493453603,-500.0,0.00011532,2]
[347093533,1735493453612,-499.61,0.00011534,2]
[347093534,1735493453621,-500.0,0.00011806,2]
[347093535,1735493453631,-2350.96196122,0.00011981,2]
[347093536,1735493453641,-40.06233002,0.00012084,2]
[347093537,1735493453863,-500.0,0.00011534,2]
[347093538,1735493453873,-160.51501,0.0001208,2]
[347093539,1735493834986,1054.05845467,0.00018,30]
[347093540,1735493912558,500.0,0.00016799,120]
[347093541,1735493913352,500.0,0.00016827,120]
[347093542,1735493913614,500.0,0.00016854,120]
[347093543,1735493913984,500.0,0.00016881,120]
[347093544,1735493914235,500.0,0.00016909,120]
[347093545,1735493914494,500.0,0.00016936,120]
[347093546,1735493914740,500.0,0.00016964,120]
[347093547,1735493915022,151.52,0.00016991,120]
[347093548,1735493952370,322.56,0.00010885,2]
[347093549,1735494017134,250.0,0.00010847,2]
[347093551,1735494088573,400.0,0.00010989,2]
[347093552,1735494154377,409.56,8.967e-05,2]
[347093553,1735494157848,171.98,0.00010137,2]
[347093554,1735494208233,154.98,0.00010885,2]
[347093555,1735494273688,250.0,0.00010872,2]
[347093573,1735494631740,-1000.0,0.00011027,2]
[347093574,1735494631750,-409.56,0.00011231,2]
[347093575,1735494631759,-231.9847258,0.00011232,2]
[347093576,1735494631768,-231.98472579,0.00011282,2]
[347093577,1735494631778,-150.0,0.00011315,2]
[347093578,1735494631787,-50000.0,0.00011315,2]
[347093579,1735494631797,-231.98472579,0.00011331,2]
[347093580,1735494631807,-164.68632748,0.00011332,2]
[347093581,1735494631816,-278.198,0.00011336,2]
[347093582,1735494631826,-17849.3714,0.00011431,2]
[347093583,1735494631836,-538.7824,0.00011431,2]
[347093584,1735494631845,-405.0492,0.00011433,2]
[347093585,1735494631855,-502.92,0.00011531,2]
[347093586,1735494631864,-500.0,0.00011531,2]
[347093587,1735494631873,-500.0,0.00011531,2]
[347093588,1735494631883,-500.0,0.00011531,2]
[347093589,1735494631892,-500.0,0.00011531,2]
[347093590,1735494631901,-500.0,0.00011531,2]
[347093591,1735494631911,-500.0,0.00011531,2]
[347093592,1735494631920,-500.0,0.00011531,2]
[347093593,1735494631930,-500.0,0.00011531,2]
[347093594,1735494631939,-500.0,0.00011531,2]
[347093595,1735494631949,-500.0,0.00011531,2]
[347093596,1735494631960,-500.0,0.00011531,2]
[347093597,1735494631970,-500.0,0.00011531,2]
[347093598,1735494631981,-581.19,0.00011531,2]
[347093599,1735494631990,-500.0,0.00011531,2]
[347093600,1735494631999,-500.0,0.00011531,2]
[347093601,1735494632009,-500.0,0.00011531,2]
[347093602,1735494632019,-500.0,0.00011531,2]
[347093603,1735494632028,-500.0,0.00011531,2]
[347093604,1735494632039,-500.0,0.00011531,2]
[347093605,1735494632048,-500.0,0.00011531,2]
[347093606,1735494632057,-500.0,0.00011531,2]
[347093607,1735494632067,-500.0,0.00011531,2]
[347093608,1735494632076,-500.0,0.00011531,2]
[347093609,1735494632086,-500.0,0.00011531,2]
[347093610,1735494632095,-500.0,0.00011531,2]
[347093612,1735494632105,-500.0,0.00011531,2]
[347093614,1735494632115,-504.61392804,0.00011531,2]
[347093616,1735494632124,-500.0,0.00011531,2]
[347093618,1735494632133,-500.0,0.00011531,2]
[347093620,1735494632143,-500.0,0.00011531,2]
[347093622,1735494632151,-871.09,0.00011531,2]
[347093624,1735494632161,-500.0,0.00011531,2]
[347093625,1735494632171,-500.0,0.00011531,2]
[347093627,1735494632181,-500.0,0.00011531,2]
[347093629,1735494632190,-500.0,0.00011531,2]
[347093631,1735494632200,-500.0,0.00011531,2]
[347093634,1735494632210,-500.0,0.00011531,2]
[347093637,1735494632220,-500.0,0.00011531,2]
[347093640,1735494632230,-500.0,0.00011531,2]
[347093643,1735494632239,-500.0,0.00011531,2]
[347093646,1735494632249,-500.0,0.00011531,2]
[347093688,1735494632466,-500.0,0.00011531,2]
[347093690,1735494632478,-608.60428914,0.00011531,2]
[347093692,1735494632487,-500.0,0.00011531,2]
[347093694,1735494632498,-500.0,0.00011531,2]
[347093696,1735494632507,-500.0,0.00011531,2]
[347093698,1735494632517,-500.0,0.00011531,2]
[347093700,1735494632527,-422.92604975,0.00011531,2]
[347093702,1735494632538,-256.6681927,0.00011531,2]
[347093704,1735494632547,-500.0,0.00011531,2]
[347093706,1735494632557,-630.14123409,0.00011531,2]
[347093708,1735494632566,-500.0,0.00011531,2]
[347093710,1735494632575,-500.0,0.00011531,2]
[347093712,1735494632584,-500.0,0.00011531,2]
[347093714,1735494632594,-500.0,0.00011531,2]
[347093716,1735494632603,-500.0,0.00011531,2]
[347093718,1735494632612,-500.0,0.00011531,2]
[347093720,1735494632621,-500.0,0.00011531,2]
[347093722,1735494632630,-500.0,0.00011531,2]
[347093724,1735494632640,-500.0,0.00011531,2]
[347093726,1735494632649,-500.0,0.00011531,2]
[347093728,1735494632659,-500.0,0.00011531,2]
[347093730,1735494632668,-500.0,0.00011531,2]
[347093732,1735494632678,-500.0,0.00011531,2]
[347093734,1735494632687,-500.0,0.00011531,2]
[347093736,1735494632697,-500.0,0.00011531,2]
[347093738,1735494632706,-500.0,0.00011531,2]
[347093740,1735494632716,-500.0,0.00011531,2]
[347093742,1735494632725,-500.0,0.00011531,2]
[347093744,1735494632735,-500.0,0.00011531,2]
[347093746,1735494632744,-238.12426596,0.00011531,2]
[347093748,1735494632754,-500.0,0.00011531,2]
[347093750,1735494632763,-500.0,0.00011531,2]
[347093752,1735494632772,-500.0,0.00011531,2]
[347093754,1735494632781,-500.0,0.00011531,2]
[347093756,1735494632790,-500.0,0.00011531,2]
[347093758,1735494632799,-500.0,0.00011531,2]
[347093760,1735494632808,-500.0,0.00011531,2]
[347093762,1735494632818,-500.0,0.00011531,2]
[347093764,1735494632827,-500.0,0.00011531,2]
[347093766,1735494632837,-500.0,0.00011531,2]
[347093768,1735494632846,-500.0,0.00011531,2]
[347093770,1735494632855,-500.0,0.00011531,2]
[347093772,1735494632866,-500.0,0.00011531,2]
[347093774,1735494632875,-500.0,0.00011531,2]
[347093776,1735494632884,-500.0,0.00011531,2]
[347093778,1735494632894,-500.0,0.00011531,2]
[347093780,1735494632903,-500.0,0.00011531,2]
[347093782,1735494632913,-500.0,0.00011531,2]
[347093784,1735494632922,-500.0,0.00011531,2]
[347093786,1735494632931,-500.0,0.00011531,2]
[347093788,1735494632940,-500.0,0.00011531,2]
[347093790,1735494632949,-500.0,0.00011531,2]
[347093792,1735494632958,-500.0,0.00011531,2]
[347093794,1735494632966,-500.0,0.00011531,2]
[347093796,1735494632976,-500.0,0.00011531,2]
[347093797,1735494632985,-500.0,0.00011531,2]
[347093799,1735494632994,-500.0,0.00011531,2]
[347093801,1735494633004,-500.0,0.00011531,2]
[347093803,1735494633012,-500.0,0.00011531,2]
[347093805,1735494633022,-500.0,0.00011531,2]
[347093807,1735494633032,-500.0,0.00011531,2]
[347093809,1735494633041,-500.0,0.00011531,2]
[347093811,1735494633050,-500.0,0.00011531,2]
[347093813,1735494633060,-500.0,0.00011531,2]